bitfinex/quotes_SOLUSD_20240624
["timestamp","ask_amount","ask_price","bid_price","bid_amount"]
[1719209075140,0.8466,124.69,124.64,5.6161]
[1719209075375,0.8172,124.71,124.65,5.9556]
[1719209075647,0.8172,124.71,124.67,5.6146]
[1719209075955,0.8172,124.71,124.65,0.34]
[1719209076455,0.8172,124.71,124.63,5.6165]
[1719209076456,0.8172,124.71,124.66,0.17]
[1719209076636,0.8172,124.71,124.64,5.9559]
[1719209077658,0.8172,124.71,124.61,5.6172]
[1719209078271,0.8172,124.71,124.6,5.6178]
[1719209078441,0.8466,124.68,124.57,5.6193]
[1719209078645,0.8466,124.68,124.55,100.0]
[1719209078646,0.17,124.67,124.55,100.0]
[1719209079260,0.17,124.67,124.57,5.6193]
[1719209079456,0.17,124.67,124.58,5.6188]
[1719209079763,0.8466,124.68,124.58,100.0]
[1719209079937,0.8466,124.68,124.61,5.6173]
[1719209080840,0.8466,124.68,124.63,100.0]
[1719209081147,0.8466,124.68,124.64,0.34]
[1719209082535,0.8466,124.68,124.64,5.9561]
[1719209082739,0.8466,124.68,124.64,0.34]
[1719209083834,1.6638,124.73,124.65,5.6153]
[1719209084143,1.6638,124.73,124.66,5.9551]
[1719209084350,1.6638,124.73,124.66,0.34]
[1719209085634,1.6638,124.73,124.67,5.6147]
[1719209085864,1.6638,124.73,124.68,0.34]
[1719209086251,1.6638,124.73,124.68,0.17]
[1719209086757,1.6638,124.73,124.67,0.34]
[1719209086950,1.6638,124.73,124.66,5.9549]
[1719209087352,1.6638,124.73,124.66,0.34]
[1719209087858,1.6638,124.73,124.67,0.17]
[1719209088045,1.6638,124.73,124.63,125.920351]
[1719209088239,1.6638,124.73,124.64,5.6158]
[1719209089166,1.6638,124.73,124.63,122.7058]
[1719209089349,1.6638,124.73,124.64,5.6161]
[1719209089558,1.6638,124.73,124.65,0.17]
[1719209089863,1.6638,124.73,124.65,0.34]
[1719209090467,1.6638,124.73,124.65,5.9557]
[1719209090649,1.6638,124.73,124.67,5.6148]
[1719209090972,1.6638,124.73,124.68,0.34]
[1719209091352,1.6638,124.73,124.68,0.17]
[1719209091568,1.6638,124.73,124.67,0.34]
[1719209091853,1.6638,124.73,124.68,0.17]
[1719209092054,1.6638,124.73,124.66,0.34]
[1719209092251,1.6638,124.73,124.66,5.9549]
[1719209092450,1.6638,124.73,124.66,0.34]
[1719209092849,1.6638,124.73,124.67,0.17]
[1719209093066,1.6638,124.73,124.65,5.9556]
[1719209093871,1.6638,124.73,124.62,6.497369]
[1719209094175,1.6638,124.73,124.6,100.0]
[1719209094384,1.6638,124.73,124.63,5.6165]
[1719209094872,1.6638,124.73,124.62,5.6168]
[1719209095454,1.6638,124.73,124.61,5.6173]
[1719209095973,1.6638,124.73,124.62,5.617]
[1719209096169,1.6638,124.73,124.61,5.6173]
[1719209096354,1.6638,124.72,124.61,5.6173]
[1719209096752,1.6638,124.72,124.62,0.34]
[1719209097662,1.6638,124.72,124.63,0.17]
[1719209097863,1.6638,124.72,124.62,100.0]
[1719209098175,1.6638,124.72,124.63,5.9565]
[1719209098347,1.6638,124.72,124.6,106.497369]
[1719209098752,1.6638,124.72,124.61,5.6173]
[1719209099166,1.6638,124.72,124.6,106.497369]
[1719209099687,1.6638,124.72,124.62,100.0]
[1719209099860,1.6638,124.72,124.63,0.34]
[1719209100368,1.6638,124.72,124.64,5.6157]
[1719209100567,1.6638,124.72,124.65,0.34]
[1719209100753,1.6638,124.72,124.63,0.17]
[1719209100948,1.6638,124.72,124.63,0.34]
[1719209101983,3.2061155,124.72,124.63,0.34]
[1719209102465,3.2061155,124.72,124.59,259.0]
[1719209102466,21.3338,124.71,124.59,259.0]
[1719209102674,0.8172,124.68,124.57,385.8]
[1719209102851,2.3595155,124.68,124.57,5.6189]
[1719209103054,2.3595155,124.68,124.56,5.6196]
[1719209103267,0.34,124.67,124.57,5.6192]
[1719209103670,0.8172,124.68,124.59,5.618]
[1719209103852,0.8172,124.68,124.62,5.6167]
[1719209104062,0.8172,124.68,124.6,100.0]
[1719209104256,0.8172,124.68,124.62,5.617]
[1719209104472,0.8172,124.68,124.63,5.9566]
[1719209104654,0.8172,124.68,124.64,5.6161]
[1719209104859,0.8466,124.69,124.65,0.17]
[1719209105055,0.8172,124.72,124.66,5.6152]
[1719209105056,1.6638,124.72,124.66,5.6152]
[1719209105288,1.6638,124.72,124.67,0.34]
[1719209105487,1.6638,124.72,124.67,0.17]
[1719209105773,1.6638,124.72,124.65,0.17]
[1719209106370,1.6638,124.72,124.64,0.34]
[1719209106577,1.6638,124.72,124.64,100.0]
[1719209106776,1.6638,124.72,124.66,5.6151]
[1719209106967,1.6638,124.72,124.67,0.34]
[1719209107169,0.8468939,124.74,124.73,5.6121]
[1719209107369,1.6638,124.83,124.79,5.6093]
[1719209107552,22.75,124.93,124.81,5.6081]
[1719209107553,1.6640939,124.87,124.81,5.6081]
[1719209107757,0.8468939,124.87,124.82,0.34]
[1719209108067,0.8468939,124.87,124.85,5.6066]
[1719209108268,0.8468939,124.87,124.86,0.34]
[1719209108861,0.8468939,124.87,124.86,0.17]
[1719209109060,0.36983211,124.87,124.86,5.7762]
[1719209109260,0.36983211,124.87,124.86,90.52571387]
[1719209109468,1.6934939,124.99,124.88,5.605]
[1719209109774,1.6934939,124.99,124.89,0.34]
[1719209110154,1.6934939,124.99,124.84,22.75]
[1719209110155,1.6934939,124.99,124.84,122.75]
[1719209110376,1.6934939,124.99,124.86,100.0]
[1719209110568,1.6934939,124.99,124.88,5.6052]
[1719209110755,1.6934939,124.99,124.89,0.17]
[1719209110963,1.6934939,124.99,124.87,5.9457]
[1719209111418,1.6934939,124.99,124.88,100.0]
[1719209111680,0.8468939,124.99,124.93,5.603]
[1719209111885,0.8468939,124.99,124.94,0.34]
[1719209112087,0.8468939,124.99,124.9,100.0]
[1719209112261,0.8468939,124.99,124.91,0.34]
[1719209112656,0.8468939,124.99,124.92,105.6034]
[1719209112863,0.8468939,124.99,124.93,0.34]
[1719209113171,0.8468939,124.99,124.93,0.17]
[1719209113658,0.8468939,124.99,124.93,0.34]
[1719209113864,0.8468939,124.99,124.93,0.17]
[1719209114561,0.8468939,124.99,124.93,14.3473]
[1719209114765,0.8468939,124.99,124.94,100.0]
[1719209114980,0.8468939,124.99,124.95,0.17]
[1719209115189,0.8468939,124.99,124.93,0.34]
[1719209116085,0.8468939,124.99,124.94,100.0]
[1719209116267,0.8468939,124.99,124.95,5.942]
[1719209116468,0.8468939,124.99,124.95,5.9422]
[1719209116785,0.8468939,124.99,124.95,0.34]
[1719209116997,0.8468939,124.99,124.93,1.85163932]
[1719209117203,0.8468939,124.99,124.94,0.17]
[1719209118494,0.8468939,124.99,124.93,1.85163932]
[1719209119792,0.8468939,124.99,124.94,100.0]
[1719209119977,0.8468939,124.99,124.93,1.85163932]
[1719209120186,0.8468939,124.99,124.93,7.45443932]
[1719209120390,0.8468939,124.99,124.94,105.6026]
[1719209120576,0.8468939,124.99,124.96,5.6015]
[1719209120779,0.8468939,124.99,124.97,0.17]
[1719209120999,0.8468939,124.99,124.97,5.771]
[1719209121170,0.8468939,124.99,124.98,5.6008]
[1719209121372,0.8172,125.11,124.99,5.6001]
[1719209121584,0.8172,125.11,125.0,0.17]
[1719209122099,0.8172,125.11,124.94,259.0]
[1719209122100,2.86560921,125.1,124.94,259.0]
[1719209122289,2.86560921,125.09,124.93,101.85163932]
[1719209122472,2.86560921,125.09,124.95,100.0]
[1719209122789,24.7835,125.08,124.93,1.85163932]
[1719209122992,2.86560921,125.07,124.93,1.85163932]
[1719209123175,2.86560921,125.06,124.93,1.85163932]
[1719209123500,2.86560921,125.06,124.93,7.45443932]
[1719209123668,2.86560921,125.06,124.93,1.85163932]
[1719209124210,12.86560921,125.06,124.89,359.0]
[1719209124503,2.0335,125.08,124.95,5.6019]
[1719209124669,2.0335,125.08,124.94,100.0]
[1719209124875,2.0335,125.08,124.94,5.6026]
[1719209125265,2.0335,125.08,124.93,5.6027]
[1719209125485,2.0335,125.08,124.94,100.0]
[1719209125685,2.0335,125.08,124.95,0.34]
[1719209125889,2.0335,125.08,124.99,5.6003]
[1719209126075,2.0335,125.08,125.0,0.34]
[1719209126271,0.8172,125.08,125.0,0.34]
[1719209126475,0.8172,125.08,125.01,5.5995]
[1719209126683,0.8172,125.08,124.97,5.6013]
[1719209126890,0.8172,125.08,124.98,0.17]
[1719209127392,0.8172,125.08,124.99,100.0]
[1719209127597,0.8172,125.08,124.99,105.6003]
[1719209127773,0.8172,125.08,125.0,5.5999]
[1719209127971,0.8172,125.08,124.99,100.0]
[1719209128197,0.8172,125.08,124.97,48.27]
[1719209128198,1.2163,125.1,125.03,5.5985]
[1719209128492,1.2163,125.1,125.0,5.5999]
[1719209128694,1.2163,125.1,125.01,0.17]
[1719209128871,1.2163,125.1,125.0,0.17]
[1719209129066,1.2163,125.1,124.98,5.6007]
[1719209129067,1.2163,125.1,124.96,105.6017]
[1719209129272,4.08190921,125.1,124.94,100.0]
[1719209129479,0.17,125.09,124.96,100.0]
[1719209129675,4.08190921,125.1,125.0,5.5995]
[1719209129881,4.08190921,125.1,124.96,100.0]
[1719209130088,2.86560921,125.09,124.97,1.85104666]
[1719209130389,1.2163,125.1,125.0,5.5999]
[1719209130594,1.2163,125.1,124.98,100.0]
[1719209130785,1.2163,125.1,125.04,5.5981]
[1719209130987,1.2163,125.1,125.01,100.0]
[1719209131191,1.2163,125.1,124.99,101.85075046]
[1719209131494,1.2163,125.1,125.02,5.7689]
[1719209131689,1.2163,125.1,125.0,5.7698]
[1719209132103,1.2163,125.1,125.01,5.7693]
[1719209132275,1.6640939,125.12,125.02,20.17]
[1719209132471,1.6640939,125.12,125.03,0.17]
[1719209132674,1.6640939,125.12,125.02,0.17]
[1719209133070,4.52970311,125.12,124.99,101.85075046]
[1719209133305,1.6640939,125.12,125.01,105.5992]
[1719209133592,1.6640939,125.12,125.02,5.5988]
[1719209133975,1.6640939,125.12,125.01,100.0]
[1719209134175,1.6640939,125.12,125.01,5.5994]
[1719209134371,4.52970311,125.12,125.02,5.939]
[1719209134874,4.52970311,125.12,124.99,101.85075046]
[1719209135091,0.34,125.11,124.99,1.85075046]
[1719209135282,4.52970311,125.12,124.99,1.85075046]
[1719209135493,1.6640939,125.12,125.0,5.5997]
[1719209135677,4.52970311,125.12,124.99,7.45105046]
[1719209135873,4.52970311,125.12,124.99,1.85075046]
[1719209136194,4.52970311,125.12,124.98,100.0]
[1719209136391,1.6640939,125.12,125.03,100.0]
[1719209136597,1.6640939,125.12,125.05,5.5975]
[1719209136890,1.6640939,125.12,125.04,5.5981]
[1719209137092,1.6640939,125.12,124.99,101.85075046]
[1719209137291,1.6640939,125.12,125.02,5.5988]
[1719209137488,1.6640939,125.12,125.02,5.599]
[1719209137696,1.6640939,125.12,125.0,1.8506024]
[1719209137884,1.6640939,125.12,125.02,5.5988]
[1719209138098,4.52970311,125.12,125.01,5.5993]
[1719209138286,4.52970311,125.12,125.0,1.8506024]
[1719209138681,1.6640939,125.12,125.01,100.0]
[1719209139283,1.6640939,125.12,125.02,5.599]
[1719209139995,1.6640939,125.12,125.03,100.17]
[1719209140190,0.8468939,125.12,125.05,100.0]
[1719209140397,0.8468939,125.12,125.06,0.34]
[1719209140589,0.8468939,125.12,125.06,0.17]
[1719209141797,0.8468939,125.12,125.08,5.5964]
[1719209142005,0.8468939,125.12,125.09,0.17]
[1719209142199,0.8468939,125.12,125.09,5.9359]
[1719209142512,0.8468939,125.12,125.09,0.17]
[1719209142816,0.8468939,125.12,125.07,0.17]
[1719209143102,0.8468939,125.12,125.07,0.34]
[1719209143405,0.8468939,125.12,125.06,0.34]
[1719209143586,0.8468939,125.12,125.06,5.937]
[1719209143788,0.8468939,125.12,125.06,0.34]
[1719209144603,0.8468939,125.12,125.07,5.5964]
[1719209144909,0.8468939,125.12,125.08,0.17]
[1719209145489,0.8468939,125.12,125.07,0.17]
[1719209145694,0.8468939,125.12,125.03,100.0]
[1719209145896,0.8468939,125.12,125.05,100.0]
[1719209146090,0.8468939,125.12,125.06,1.84971454]
[1719209146293,0.8468939,125.12,125.07,5.5965]
[1719209146508,0.8468939,125.12,125.09,5.5959]
[1719209146716,0.8468939,125.12,125.08,5.5962]
[1719209146892,0.8468939,125.12,125.09,0.17]
[1719209147105,0.8468939,125.12,125.08,5.5963]
[1719209147303,0.8468939,125.12,125.07,0.17]
[1719209148996,0.8468939,125.12,125.07,0.34]
[1719209149387,0.8468939,125.12,125.07,5.9367]
[1719209149897,0.8468939,125.12,125.07,0.17]
[1719209150219,0.8468939,125.12,125.08,5.5963]
[1719209150398,0.8468939,125.12,125.09,0.17]
[1719209150710,0.8468939,125.12,125.06,1.84971454]
[1719209150909,0.8468939,125.12,125.03,100.0]
[1719209151112,0.8468939,125.12,125.05,5.5976]
[1719209151310,0.8468939,125.12,125.04,7.4480104]
[1719209151515,0.8172,125.11,125.04,1.8500104]
[1719209151712,0.8172,125.09,125.04,1.8500104]
[1719209152423,0.8172,125.09,125.01,5.5991]
[1719209153207,0.8172,125.09,124.97,3.205831]
[1719209153601,0.8172,125.09,125.0,5.5999]
[1719209153910,0.8172,125.09,124.99,5.6002]
[1719209154527,0.8172,125.07,124.97,1.85104666]
[1719209154839,0.8172,125.07,124.9,21.87]
[1719209154840,0.34,125.06,124.9,121.87]
[1719209155124,3.68280921,125.07,124.97,5.6012]
[1719209155325,3.68280921,125.07,124.96,5.6016]
[1719209155697,3.68280921,125.07,124.96,5.6017]
[1719209155897,3.68280921,125.07,124.94,114.0064]
[1719209156198,3.68280921,125.07,124.96,5.6017]
[1719209156199,0.8172,125.07,124.96,5.6017]
[1719209156420,0.8172,125.07,124.97,0.17]
[1719209156802,0.8172,125.07,124.95,1.85134294]
[1719209156803,0.8172,125.07,124.96,0.17]
[1719209157401,0.8172,125.07,124.96,5.7713]
[1719209157597,0.8172,125.07,124.96,0.17]
[1719209157813,0.8172,125.07,124.96,5.7716]
[1719209158704,0.8172,125.07,124.97,0.17]
[1719209159623,0.8172,125.07,124.96,0.17]
[1719209159817,23.5672,125.05,124.95,1.85134294]
[1719209160020,3.20560921,125.04,124.95,1.85134294]
[1719209160199,2.0335,125.03,124.95,1.85134294]
[1719209160402,3.03560921,125.02,124.95,1.85134294]
[1719209161311,2.86560921,125.01,124.95,1.85134294]
[1719209161517,0.8172,124.99,124.87,103.208176]
[1719209161828,3.68280921,124.99,124.87,5.06070503]
[1719209162039,3.68280921,124.99,124.87,10.66630503]
[1719209162211,3.68280921,124.99,124.87,107.45812903]
[1719209162522,3.68280921,124.99,124.89,5.6049]
[1719209162824,1.2163,124.98,124.87,7.45792903]
[1719209163058,1.2163,124.98,124.87,1.85252903]
[1719209163330,0.8172,124.96,124.87,1.85252903]
[1719209163906,0.8172,124.96,124.84,48.27]
[1719209164127,0.8172,124.96,124.87,5.6055]
[1719209164306,0.8172,124.96,124.85,114.0165]
[1719209164639,0.8172,124.96,124.83,3.209132]
[1719209164813,3.68280921,124.96,124.83,1.85312265]
[1719209165009,1.2163,124.94,124.83,1.85312265]
[1719209165308,0.17,124.93,124.83,1.85312265]
[1719209165514,1.2163,124.94,124.83,101.85312265]
[1719209165923,1.2163,124.94,124.86,5.6061]
[1719209166140,1.2163,124.94,124.87,5.6057]
[1719209166422,1.2163,124.94,124.85,14.0167]
[1719209166733,1.2163,124.94,124.89,5.6045]
[1719209166916,1.2163,124.94,124.86,2.0226774]
[1719209167224,1.2163,124.94,124.88,5.6052]
[1719209167433,0.8172,124.99,124.95,5.6021]
[1719209167611,0.8172,124.99,124.94,5.6025]
[1719209167817,0.8172,124.99,124.95,5.7722]
[1719209168124,0.8172,124.99,124.95,0.17]
[1719209168427,0.8172,124.99,124.94,0.17]
[1719209168612,0.8172,124.99,124.93,0.34]
[1719209169009,0.8172,124.99,124.93,5.943]
[1719209169326,0.8172,124.99,124.93,0.34]
[1719209169526,0.8172,124.99,124.93,0.17]
[1719209169704,0.8172,124.99,124.94,5.6025]
[1719209170129,0.8172,124.99,124.95,5.6021]
[1719209170312,0.8172,124.99,124.93,0.34]
[1719209170519,0.8172,124.99,124.93,0.17]
[1719209170722,1.2163,125.01,124.95,5.6019]
[1719209171035,1.2163,125.01,124.96,0.17]
[1719209171636,1.2163,125.01,124.96,5.7717]
[1719209171818,1.2163,125.01,124.96,0.17]
[1719209172318,1.2163,125.01,124.95,0.17]
[1719209172639,0.8172,125.03,124.95,14.1755]
[1719209172844,0.8172,125.03,124.96,0.17]
[1719209173013,0.8172,125.03,124.96,100.17]
[1719209173215,2.0335,125.07,124.97,14.1726]
[1719209173537,2.0335,125.07,124.99,5.6001]
[1719209173912,2.0335,125.07,124.97,0.17]
[1719209174112,2.0335,125.07,124.92,391.9996]
[1719209174429,0.9872,125.06,124.9,116.2667]
[1719209174631,0.17,125.05,124.91,20.0]
[1719209174833,0.17,125.05,124.92,5.6031]
[1719209175041,0.17,125.05,124.93,5.6029]
[1719209175216,0.17,125.05,124.92,5.6033]
[1719209175416,2.0335,125.04,124.89,6.553]
[1719209175617,4.02280921,125.03,124.87,270.40749639]
[1719209175831,2.0335,125.02,124.88,5.6052]
[1719209176029,3.20560921,125.01,124.88,5.6052]
[1719209176217,3.20560921,125.01,124.89,5.6048]
[1719209176417,3.20560921,125.01,124.88,5.6052]
[1719209176747,0.8172,125.0,124.87,266.45812903]
[1719209176929,4.02280921,124.99,124.87,1.85252903]
[1719209177132,1.1572,124.99,124.87,7.45832903]
[1719209177528,1.1572,124.99,124.87,1.85252903]
[1719209177729,1.1572,124.99,124.87,7.45822903]
[1719209178047,0.8172,124.99,124.84,100.0]
[1719209178214,0.17,124.98,124.85,1.8528258]
[1719209178425,3.03560921,124.98,124.85,1.8528258]
[1719209178822,3.68280921,124.99,124.86,100.0]
[1719209179213,3.68280921,124.99,124.87,1.85252903]
[1719209179412,0.8172,124.99,124.89,100.0]
[1719209179709,0.8172,124.99,124.87,1.85252903]
[1719209179710,0.8172,124.99,124.9,0.17]
[1719209179914,0.8172,124.99,124.9,100.0]
[1719209180115,3.68280921,124.99,124.89,0.34]
[1719209180336,3.68280921,124.99,124.87,1.85252903]
[1719209180708,3.68280921,124.99,124.85,5.6065]
[1719209180915,3.68280921,124.99,124.86,5.6062]
[1719209181139,0.34,124.98,124.86,5.6062]
[1719209181354,3.20560921,124.98,124.86,5.6062]
[1719209181517,1.2163,124.97,124.91,5.6037]
[1719209181855,1.2163,124.97,124.92,5.6035]
[1719209182420,0.8172,124.99,124.9,5.6042]
[1719209182618,0.8172,124.99,124.89,0.17]
[1719209182819,0.8172,124.99,124.9,0.17]
[1719209183447,0.8172,124.99,124.87,101.85252903]
[1719209183734,0.8172,124.99,124.9,14.0111]
[1719209183957,0.8172,124.99,124.92,5.6033]
[1719209184222,0.8172,124.99,124.91,5.9438]
[1719209184842,0.8172,124.99,124.91,0.17]
[1719209185015,0.8172,124.99,124.9,0.34]
[1719209185218,0.8172,124.99,124.88,1.85238069]
[1719209185636,0.17,124.98,124.88,1.85238069]
[1719209185836,1.2163,124.97,124.88,1.85238069]
[1719209186150,0.9872,124.96,124.83,100.0]
[1719209186325,0.9872,124.96,124.84,100.0]
[1719209186326,0.8172,124.96,124.84,100.0]
[1719209186545,0.8172,124.96,124.89,100.0]
[1719209186842,0.8172,124.96,124.88,5.6053]
[1719209187048,0.8172,124.96,124.89,5.6047]
[1719209187250,0.8172,124.96,124.87,5.6054]
[1719209187432,0.8172,124.96,124.88,0.17]
[1719209187615,0.8172,124.96,124.88,5.605]
[1719209187820,0.8172,124.96,124.87,0.17]
[1719209188127,0.8172,124.96,124.86,0.17]
[1719209188446,0.8172,124.96,124.86,2.0226774]
[1719209188649,0.8172,124.96,124.88,5.6051]
[1719209188850,0.8172,124.96,124.86,2.0226774]
[1719209189151,0.8172,124.96,124.86,1.8526774]
[1719209189664,0.17,124.95,124.86,1.8526774]
[1719209189841,0.8172,124.96,124.87,5.6055]
[1719209190142,0.8172,124.96,124.83,100.0]
[1719209190350,0.8172,124.96,124.85,14.0157]
[1719209190544,3.68280921,124.96,124.84,1.85297421]
[1719209190744,0.17,124.95,124.84,1.85297421]
[1719209191146,3.03560921,124.95,124.84,1.85297421]
[1719209191347,0.8172,124.96,124.84,1.85297421]
[1719209191850,0.8172,124.96,124.89,5.6048]
[1719209192058,0.8172,124.96,124.87,5.6056]
[1719209192428,0.8172,124.96,124.88,0.17]
[1719209193724,0.8172,124.96,124.85,5.6065]
[1719209193962,0.8172,124.96,124.84,7.46007421]
[1719209194148,0.8172,124.96,124.85,5.6066]
[1719209194348,0.8172,124.96,124.84,101.85297421]
[1719209194645,0.8172,124.96,124.92,5.6035]
[1719209195233,1.2163,124.97,124.94,5.6025]
[1719209195436,1.2163,124.97,124.95,5.6022]
[1719209195658,1.2163,125.01,124.97,5.6012]
[1719209195834,1.2163,125.01,124.96,5.6016]
[1719209196027,1.2163,125.01,124.97,5.6013]
[1719209196365,1.2163,125.01,124.96,5.7714]
[1719209196649,0.8172,125.02,124.98,5.6004]
[1719209196828,0.8172,125.06,124.99,100.17]
[1719209197029,0.8172,125.06,125.02,5.5989]
[1719209197347,0.8172,125.09,125.03,0.17]
[1719209197662,0.8172,125.09,125.03,0.34]
[1719209198849,0.8172,125.09,125.03,5.9384]
[1719209199351,0.8172,125.09,125.03,0.34]
[1719209199536,0.8468939,125.12,125.04,100.0]
[1719209199747,0.8468939,125.12,125.06,5.5971]
[1719209200050,0.8468939,125.12,125.05,2.01986246]
[1719209200231,0.8468939,125.12,125.06,0.17]
[1719209200936,0.8468939,125.12,125.05,2.01986246]
[1719209201137,0.8468939,125.12,125.06,0.17]
[1719209201758,0.8468939,125.12,125.05,1.84986246]
[1719209201969,0.8468939,125.12,125.06,0.34]
[1719209202256,0.8468939,125.12,125.06,0.17]
[1719209202435,0.8468939,125.12,125.07,100.0]
[1719209202642,0.8468939,125.12,125.08,0.34]
[1719209203341,0.8468939,125.12,125.09,105.5959]
[1719209203553,0.8468939,125.12,125.1,0.34]
[1719209203955,0.8468939,125.12,125.1,0.17]
[1719209204346,0.8468939,125.12,125.06,5.5972]
[1719209204539,0.8468939,125.12,125.05,1.84986246]
[1719209205330,0.8468939,125.12,125.07,5.5968]
[1719209205532,0.8468939,125.12,125.05,1.84986246]
[1719209207253,2.0335,125.11,124.99,5.6002]
[1719209207451,0.17,125.1,124.99,5.6002]
[1719209207854,2.0335,125.11,125.01,5.5991]
[1719209208051,2.0335,125.11,125.0,101.8506024]
[1719209208247,2.0335,125.11,125.01,5.5992]
[1719209208459,2.0335,125.11,125.03,5.5985]
[1719209208664,2.0335,125.11,125.0,101.8506024]
[1719209208844,2.0335,125.11,125.01,5.5992]
[1719209209045,2.0335,125.11,125.0,1.8506024]
[1719209209345,0.17,125.1,125.0,1.8506024]
[1719209209546,3.03560921,125.1,125.0,1.8506024]
[1719209209870,2.0335,125.11,125.0,121.8506024]
[1719209210040,2.0335,125.11,125.02,100.0]
[1719209210241,2.0335,125.11,125.05,5.5976]
[1719209210455,2.0335,125.11,125.04,5.598]
[1719209210767,2.0335,125.11,125.03,7.61835837]
[1719209211067,2.0335,125.11,125.05,0.17]
[1719209211266,2.0335,125.11,125.04,0.17]
[1719209211769,2.0335,125.11,125.03,1.85015837]
[1719209212448,2.0335,125.11,125.0,100.0]
[1719209212449,2.0335,125.11,124.99,3.205295]
[1719209212871,2.0335,125.11,124.98,100.0]
[1719209213036,4.89910921,125.11,124.97,15.8319]
[1719209213237,0.34,125.1,124.98,7.19799375]
[1719209213449,0.34,125.1,124.99,1.59746603]
[1719209213659,0.17,125.1,124.99,1.59746603]
[1719209213974,0.17,125.1,124.99,7.19766603]
[1719209214458,0.17,125.1,125.0,5.7699]
[1719209214665,0.17,125.1,125.01,1.60038984]
[1719209215277,2.86560921,125.09,124.96,3.2058]
[1719209215450,2.86560921,125.09,124.96,8.8075]
[1719209215451,1.1572,125.08,124.96,8.8075]
[1719209215766,1.1572,125.08,124.94,100.0]
[1719209215767,1.2163,125.07,124.94,100.0]
[1719209215970,0.17,125.06,124.94,100.0]
[1719209216175,0.17,125.06,124.94,105.6024]
[1719209216348,0.17,125.06,124.95,5.6022]
[1719209216667,0.8172,125.05,124.92,100.0]
[1719209217182,0.8172,125.05,124.93,5.6029]
[1719209217472,0.8172,125.05,124.92,5.6034]
[1719209217655,0.34,125.04,124.92,5.6034]
[1719209217965,3.20560921,125.04,124.92,5.6034]
[1719209218545,3.03560921,125.04,124.92,7.45518755]
[1719209218750,0.17,125.04,124.92,101.85178755]
[1719209218966,3.68280921,125.05,124.92,1.85178755]
[1719209219275,0.17,125.04,124.92,1.85178755]
[1719209219570,3.20560921,125.04,124.92,7.45518755]
[1719209219778,3.20560921,125.04,124.92,1.85178755]
[1719209220073,1.2163,125.03,124.92,1.85178755]
[1719209220275,0.8172,125.01,124.89,259.0]
[1719209220485,0.8172,125.01,124.88,5.6051]
[1719209220486,0.34,125.0,124.88,5.6051]
[1719209220790,0.34,125.0,124.86,9.261319]
[1719209220953,1.2163,124.99,124.88,5.6053]
[1719209221277,4.08190921,124.99,124.89,5.6046]
[1719209221476,4.08190921,124.99,124.88,5.6051]
[1719209221776,0.17,124.98,124.86,5.606]
[1719209221991,0.17,124.98,124.88,5.605]
[1719209222154,1.2163,124.99,124.93,5.6031]
[1719209222355,1.2163,124.99,124.89,114.0113]
[1719209222656,1.2163,124.99,124.91,5.6039]
[1719209223066,1.2163,124.99,124.89,5.6046]
[1719209223382,1.2163,124.99,124.9,0.17]
[1719209224382,1.2163,124.99,124.91,5.6039]
[1719209225493,1.2163,124.99,124.9,5.7743]
[1719209225979,1.2163,124.99,124.9,0.17]
[1719209226451,1.2163,124.99,124.86,5.6061]
[1719209226651,0.17,124.98,124.87,5.6058]
[1719209226873,1.2163,124.99,124.88,5.6053]
[1719209227060,1.2163,124.99,124.89,5.6048]